fUST/lending_fUST_20250812
["ID","MTS","AMOUNT","RATE_DAILY","PERIOD"]
[378676002,1754955067043,-472.74049455,0.0002,2]
[378676003,1754955067052,-460.0,0.0002,2]
[378676004,1754955067061,-460.0,0.0002,2]
[378676005,1754955067070,-508.94473862,0.0002,2]
[378676006,1754955067080,-1922.55,0.0002,2]
[378676007,1754955067089,-460.0,0.0002,2]
[378676008,1754955067098,-151.0,0.0002,2]
[378676009,1754955067107,-151.0,0.0002,2]
[378676010,1754955067117,-747.82,0.0002,2]
[378676011,1754955067126,-460.0,0.0002,2]
[378676012,1754955067136,-460.0,0.0002,2]
[378676013,1754955067145,-460.0,0.0002,2]
[378676014,1754955067154,-460.0,0.0002,2]
[378676015,1754955067164,-460.0,0.0002,2]
[378676016,1754955067173,-460.0,0.0002,2]
[378676017,1754955067183,-2379.82,0.0002,2]
[378676018,1754955067192,-634.84,0.0002,2]
[378676019,1754955067207,-460.0,0.0002,2]
[378676020,1754955067216,-2493.15,0.0002,2]
[378676021,1754955067226,-460.0,0.0002,2]
[378676022,1754955067235,-460.0,0.0002,2]
[378676023,1754955067246,-392.26436379,0.0002,2]
[378676024,1754955067255,-7005.15695088,0.0002,2]
[378676025,1754955067265,-460.0,0.0002,2]
[378676026,1754955067275,-460.0,0.0002,2]
[378676027,1754955067284,-14402.1978769,0.0002,2]
[378676028,1754955067293,-460.0,0.0002,2]
[378676029,1754955067303,-682.35,0.0002,2]
[378676030,1754955067312,-493.35,0.0002,2]
[378676031,1754955067322,-460.0,0.0002,2]
[378676032,1754955067331,-460.02790009,0.0002,2]
[378676033,1754955067340,-56069.16055647,0.0002,2]
[378676034,1754955067349,-364.11032064,0.0002,2]
[378676035,1754955067359,-27508.9507498,0.0002,2]
[378676036,1754955067368,-694.26,0.0002,2]
[378676037,1754955067377,-460.0,0.0002,2]
[378676038,1754955067387,-7237.17604782,0.0002,10]
[378676039,1754955067396,-779.21,0.0002,2]
[378676040,1754955067405,-17001.48056737,0.0002,2]
[378676041,1754955067415,-460.0,0.0002,2]
[378676042,1754955067423,-1012.76,0.0002,2]
[378676043,1754955067433,-460.0,0.0002,2]
[378676044,1754955067442,-490.65,0.0002,2]
[378676045,1754955067451,-460.0,0.0002,2]
[378676046,1754955067461,-31509.20856891,0.0002,2]
[378676047,1754955067470,-460.0,0.0002,2]
[378676048,1754955067480,-1001.16399168,0.0002,2]
[378676049,1754955067490,-1397.25,0.0002,2]
[378676050,1754955067499,-460.0,0.0002,2]
[378676051,1754955067509,-460.0,0.0002,2]
[378676052,1754955067519,-460.0,0.0002,2]
[378676053,1754955067528,-460.0,0.0002,2]
[378676054,1754955067538,-4183.75,0.0002,2]
[378676055,1754955067547,-460.0,0.0002,2]
[378676056,1754955067557,-460.0,0.0002,2]
[378676057,1754955067566,-460.0,0.0002,2]
[378676058,1754955067576,-460.0,0.0002,2]
[378676059,1754955067586,-460.0,0.0002,2]
[378676060,1754955067595,-460.0,0.0002,2]
[378676061,1754955067604,-460.0,0.0002,2]
[378676062,1754955067614,-460.0,0.0002,2]
[378676063,1754955067624,-460.0,0.0002,2]
[378676064,1754955067633,-610.34,0.0002,2]
[378676065,1754955067643,-460.0,0.0002,2]
[378676066,1754955067652,-5016.52,0.0002,2]
[378676067,1754955067661,-521.24,0.0002,2]
[378676068,1754955067671,-538.65908821,0.0002,2]
[378676069,1754955067680,-460.0,0.0002,2]
[378676070,1754955067689,-1736.86,0.0002,2]
[378676071,1754955067700,-460.0,0.0002,2]
[378676072,1754955067709,-460.0,0.0002,2]
[378676073,1754955067719,-783.07,0.0002,2]
[378676074,1754955067728,-460.0,0.0002,2]
[378676075,1754955067738,-460.0,0.0002,2]
[378676076,1754955067747,-460.0,0.0002,2]
[378676077,1754955067757,-460.0,0.0002,2]
[378676078,1754955067766,-460.0,0.0002,2]
[378676079,1754955067776,-460.0,0.0002,2]
[378676080,1754955067785,-460.0,0.0002,2]
[378676081,1754955067795,-1063.79,0.0002,2]
[378676082,1754955067804,-151.0,0.0002,2]
[378676083,1754955067814,-151.0,0.0002,2]
[378676084,1754955067824,-525.67,0.0002,2]
[378676085,1754955067833,-462.89246635,0.0002,2]
[378676086,1754955067843,-151.0,0.0002,2]
[378676087,1754955067852,-151.0,0.0002,2]
[378676088,1754955067861,-460.0,0.0002,2]
[378676089,1754955067871,-460.0,0.0002,2]
[378676090,1754955067880,-945.31,0.0002,2]
[378676091,1754955067889,-460.0,0.0002,2]
[378676092,1754955067899,-460.0,0.0002,2]
[378676093,1754955067909,-460.0,0.0002,2]
[378676094,1754955067918,-1516.33,0.0002,2]
[378676095,1754955067927,-460.0,0.0002,2]
[378676096,1754955067936,-435.56,0.0002,2]
[378676097,1754955067945,-1411.37,0.0002,2]
[378676098,1754955067954,-225.24655388,0.0002,2]
[378676099,1754955067963,-4282.83,0.0002,2]
[378676100,1754955067972,-460.0,0.0002,2]
[378676101,1754955067981,-720.97,0.0002,2]
[378676102,1754955067990,-460.0,0.0002,2]
[378676103,1754955067999,-460.0,0.0002,2]
[378676104,1754955068008,-460.0,0.0002,2]
[378676105,1754955068017,-460.0,0.0002,2]
[378676106,1754955068026,-670.37,0.0002,2]
[378676107,1754955068035,-1273.4,0.0002,2]
[378676108,1754955068045,-460.0,0.0002,2]
[378676109,1754955068054,-13682.75,0.0002,2]
[378676110,1754955068063,-2773.36,0.0002,2]
[378676111,1754955068073,-460.0,0.0002,2]
[378676112,1754955068082,-460.0,0.0002,2]
[378676113,1754955068091,-1716.12,0.0002,2]
[378676114,1754955068100,-1003.37,0.0002,2]
[378676115,1754955068110,-204.96227025,0.0002,2]
[378676116,1754955068119,-460.0,0.0002,2]
[378676117,1754955068129,-460.0,0.0002,2]
[378676118,1754955068138,-460.0,0.0002,2]
[378676119,1754955068147,-4000.0,0.0002,4]
[378676120,1754955068156,-460.0,0.0002,2]
[378676121,1754955068165,-460.0,0.0002,2]
[378676122,1754955068174,-460.0,0.0002,2]
[378676123,1754955068183,-465.05429861,0.0002,2]
[378676124,1754955068192,-460.0,0.0002,2]
[378676125,1754955068203,-197.65,0.0002,2]
[378676126,1754955068212,-460.0,0.0002,2]
[378676127,1754955068221,-460.0,0.0002,2]
[378676128,1754955068230,-1464.56,0.0002,2]
[378676129,1754955068239,-460.0,0.0002,2]
[378676130,1754955068249,-2073.28,0.0002,2]
[378676131,1754955068258,-460.0,0.0002,2]
[378676132,1754955068268,-4275.17,0.0002,2]
[378676133,1754955068281,-460.0,0.0002,2]
[378676134,1754955068290,-912.24,0.0002,2]
[378676135,1754955068300,-460.0,0.0002,2]
[378676136,1754955068309,-4003.85,0.0002,2]
[378676137,1754955068318,-460.0,0.0002,2]
[378676138,1754955068327,-1197.46,0.0002,2]
[378676139,1754955068336,-692.91,0.0002,2]
[378676140,1754955068345,-460.0,0.0002,2]
[378676141,1754955068354,-460.0,0.0002,2]
[378676142,1754955068363,-460.0,0.0002,2]
[378676143,1754955068372,-460.0,0.0002,2]
[378676144,1754955068382,-3287.63,0.0002,2]
[378676145,1754955068391,-460.0,0.0002,2]
[378676146,1754955068400,-297.47421785,0.0002,2]
[378676147,1754955068409,-1075.09,0.0002,2]
[378676148,1754955068419,-460.0,0.0002,2]
[378676149,1754955068428,-460.0,0.0002,2]
[378676150,1754955068437,-162.92290541,0.0002,2]
[378676151,1754955068446,-151.566,0.00020006,2]
[378676152,1754955068455,-407.0,0.00020006,2]
[378676153,1754955068464,-1000.0,0.00020021,2]
[378676154,1754955068474,-1000.0,0.00020021,2]
[378676155,1754955068483,-1000.0,0.00020021,2]
[378676156,1754955068493,-1002.50131365,0.00020021,2]
[378676157,1754955068502,-250.0,0.00020021,2]
[378676158,1754955068512,-442.07213191,0.00020021,2]
[378676159,1754955068521,-953.84394465,0.00020021,2]
[378676160,1754955068531,-1000.0,0.00020021,2]
[378676161,1754955068541,-1000.0,0.00020021,2]
[378676162,1754955068551,-501.46256496,0.00020021,2]
[378676163,1754955068561,-1000.0,0.00020021,2]
[378676164,1754955068571,-1000.0,0.00020021,2]
[378676165,1754955068580,-1000.0,0.00020021,2]
[378676166,1754955068590,-1000.0,0.00020021,2]
[378676167,1754955068599,-1000.0,0.00020021,2]
[378676168,1754955068609,-1000.0,0.00020021,2]
[378676169,1754955068618,-1000.0,0.00020021,2]
[378676170,1754955068627,-500.0,0.00020021,2]
[378676171,1754955068637,-1000.0,0.00020021,2]
[378676172,1754955068647,-1000.0,0.00020021,2]
[378676173,1754955068656,-571.10111159,0.00020021,2]
[378676174,1754955068667,-1000.0,0.00020021,2]
[378676175,1754955068677,-1000.0,0.00020021,2]
[378676176,1754955068686,-385.57904354,0.00020021,2]
[378676177,1754955068696,-500.0,0.00020021,2]
[378676178,1754955068705,-1000.0,0.00020021,2]
[378676179,1754955068715,-1000.0,0.00020021,2]
[378676180,1754955068724,-247.998215,0.00020076,15]
[378676181,1754955068734,-6000.0,0.00020088,2]
[378676182,1754955068743,-500.0,0.00020125,2]
[378676183,1754955068753,-407.0,0.00020144,2]
[378676184,1754955068762,-247.998215,0.00020173,3]
[378676185,1754955068772,-275.30608065,0.00020173,2]
[378676186,1754955068781,-471.96369,0.00020187,2]
[378676187,1754955068791,-200.0,0.000202,2]
[378676188,1754955068800,-150.0,0.000202,2]
[378676189,1754955068809,-151.56690796,0.00020232,2]
[378676190,1754955068819,-151.0,0.0002026,2]
[378676191,1754955068829,-151.0,0.00020268,2]
[378676192,1754955068838,-151.0,0.00020268,2]
[378676193,1754955068847,-151.0,0.00020268,2]
[378676194,1754955068856,-151.0,0.00020268,2]
[378676195,1754955068865,-1500.0,0.00020268,2]
[378676196,1754955068874,-1500.0,0.00020268,2]
[378676197,1754955068883,-1000.0,0.00020268,2]
[378676198,1754955068893,-1355.92661282,0.00020268,2]
[378676199,1754955068902,-1500.0,0.00020268,2]
[378676200,1754955068911,-247.998215,0.0002027,5]
[378676201,1754955068920,-200.0,0.00020272,2]
[378676202,1754955068930,-14946.28900419,0.00020273,2]
[378676203,1754955068939,-151.0,0.00020273,2]
[378676204,1754955068948,-151.858018,0.00020273,2]
[378676205,1754955068957,-222.983312,0.00020273,2]
[378676206,1754955068966,-222.983312,0.00020273,2]
[378676207,1754955068975,-222.983312,0.00020273,2]
[378676208,1754955068984,-222.98332,0.00020273,2]
[378676209,1754955068993,-151.0,0.00020273,2]
[378676210,1754955069002,-151.0,0.00020273,2]
[378676211,1754955069011,-151.0,0.00020273,2]
[378676212,1754955069021,-151.0,0.00020273,2]
[378676213,1754955069029,-151.0,0.00020273,2]
[378676214,1754955069038,-151.0,0.00020273,2]
[378676215,1754955069048,-460.0,0.00020273,2]
[378676216,1754955069057,-151.0,0.00020273,2]
[378676217,1754955069065,-151.0,0.00020273,2]
[378676218,1754955069074,-151.0,0.00020273,2]
[378676219,1754955069083,-151.0,0.00020273,2]
[378676220,1754955069092,-460.0,0.00020273,2]
[378676221,1754955069102,-151.0,0.00020273,2]
[378676222,1754955069111,-460.0,0.00020273,2]
[378676223,1754955069120,-460.0,0.00020273,2]
[378676224,1754955069129,-460.0,0.00020273,2]
[378676225,1754955069138,-460.0,0.00020273,2]
[378676226,1754955069148,-151.0,0.00020273,2]
[378676227,1754955069157,-460.0,0.00020273,2]
[378676228,1754955069166,-460.0,0.00020273,2]
[378676229,1754955069176,-460.0,0.00020273,2]
[378676230,1754955069186,-460.0,0.00020273,2]
[378676231,1754955069196,-460.0,0.00020273,2]
[378676232,1754955069209,-460.0,0.00020273,2]
[378676233,1754955069218,-460.0,0.00020273,2]
[378676234,1754955069228,-460.0,0.00020273,2]
[378676235,1754955069239,-460.0,0.00020273,2]
[378676236,1754955069248,-460.0,0.00020273,2]
[378676237,1754955069257,-1047.82,0.00020273,2]
[378676238,1754955069267,-250.038032,0.00020273,2]
[378676239,1754955069278,-460.0,0.00020273,2]
[378676240,1754955069288,-787.06,0.00020273,2]
[378676241,1754955069298,-460.0,0.00020273,2]
[378676242,1754955069307,-460.0,0.00020273,2]
[378676243,1754955069316,-460.0,0.00020273,2]
[378676244,1754955069325,-2576.17098895,0.00020273,2]
[378676245,1754955069973,-460.0,0.00019178,2]
[378676246,1754955069982,-460.0,0.00019178,2]
[378676247,1754955069992,-460.0,0.00019178,2]
[378676248,1754955070001,-160.6192763,0.00019178,2]
[378676249,1754955070049,-299.3807237,0.00019178,2]
[378676250,1754955070058,-460.0,0.00019178,2]
[378676251,1754955070067,-460.0,0.00019178,2]
[378676252,1754955070076,-460.0,0.00019178,2]
[378676253,1754955070086,-460.0,0.00019178,2]
[378676254,1754955070095,-460.0,0.00019178,2]
[378676255,1754955070104,-39.82826489,0.0001999,2]
[378676256,1754955102447,152.614286,0.00023,30]
[378676257,1754955102748,152.614286,0.00023,30]
[378676258,1754955103050,152.614286,0.00023,30]
[378676259,1754955103355,152.614286,0.00023,30]
[378676260,1754955104421,152.614286,0.00023,30]
[378676261,1754955109846,152.614286,0.00021,20]
[378676262,1754955110134,152.614286,0.00020875,20]
[378676263,1754955110428,152.614286,0.0002075,20]
[378676264,1754955110745,152.614286,0.00020625,20]
[378676266,1754955131282,24900.0,0.0001832,2]
[378676267,1754955132875,156.469909,0.00023,30]
[378676306,1754955709182,152.614286,0.00023,30]
[378676307,1754955709536,152.614286,0.00023,30]
[378676308,1754955711220,152.614286,0.00021,20]
[378676309,1754955711294,152.614286,0.00020875,20]
[378676314,1754956036127,-160.0,0.00018752,2]
[378676315,1754956036151,-349.36232065,0.000189,2]
[378676316,1754956036173,-39.24274095,0.00019,5]
[378676344,1754956232620,-960.75725905,0.00019,5]
[378676346,1754956232630,-1200.0,0.00019036,2]
[378676348,1754956232640,-300.0,0.00019036,2]
[378676350,1754956232649,-300.0,0.00019036,2]
[378676352,1754956232659,-1200.0,0.00019036,2]
[378676354,1754956232668,-1760.0,0.00019037,2]
[378676356,1754956232680,-399.9608321,0.00019037,2]
[378676359,1754956232697,-1360.0391679,0.00019037,2]
[378676361,1754956232706,-10.36804561,0.00019037,2]
[378676363,1754956232719,-1749.63195439,0.00019037,2]
[378676365,1754956232728,-1760.0,0.00019037,2]
[378676367,1754956232737,-1032.44079806,0.00019078,2]
[378676369,1754956232747,-166.31313099,0.00019078,2]
[378676372,1754956232758,-500.0,0.00019173,2]
[378676376,1754956232768,-500.0,0.00019173,2]
[378676379,1754956232777,-1931.28285704,0.00019173,2]
[378676381,1754956232786,-500.0,0.00019173,2]
[378676385,1754956232796,-150.0,0.00019177,2]
[378676387,1754956232806,-500.0,0.00019177,2]
[378676390,1754956232815,-500.0,0.00019177,2]
[378676393,1754956232824,-500.0,0.00019177,2]
[378676395,1754956232834,-500.0,0.00019177,2]
[378676397,1754956232844,-500.0,0.00019177,2]
[378676400,1754956232853,-500.0,0.00019177,2]
[378676403,1754956232863,-500.0,0.00019177,2]
[378676406,1754956232872,-500.0,0.00019177,2]
[378676409,1754956232882,-379.56864958,0.00019177,2]
[378676410,1754956232891,-500.0,0.00019177,2]
[378676412,1754956232901,-500.0,0.00019177,2]
[378676415,1754956232910,-500.0,0.00019177,2]
[378676417,1754956232919,-500.0,0.00019177,2]
[378676419,1754956232928,-500.0,0.00019177,2]
[378676420,1754956232938,-200.0,0.00019177,2]
[378676444,1754956233144,-2000.0,0.00019178,2]
[378676446,1754956233156,-2000.0,0.00019178,2]
[378676448,1754956233166,-651.504,0.00019178,2]
[378676450,1754956233175,-460.0,0.00019178,2]
[378676452,1754956233185,-460.0,0.00019178,2]
[378676454,1754956233195,-460.0,0.00019178,2]
[378676456,1754956233204,-460.0,0.00019178,2]
[378676458,1754956233214,-460.0,0.00019178,2]
[378676460,1754956233224,-460.0,0.00019178,2]
[378676462,1754956233233,-460.0,0.00019178,2]
[378676464,1754956233242,-460.0,0.00019178,2]
[378676466,1754956233251,-460.0,0.00019178,2]
[378676468,1754956233261,-460.0,0.00019178,2]
[378676470,1754956233271,-460.0,0.00019178,2]
[378676472,1754956233282,-460.0,0.00019178,2]
[378676474,1754956233292,-460.0,0.00019178,2]
[378676476,1754956233302,-460.0,0.00019178,2]
[378676479,1754956233312,-460.0,0.00019178,2]
[378676481,1754956233322,-460.0,0.00019178,2]
[378676483,1754956233332,-460.0,0.00019178,2]
[378676485,1754956233342,-460.0,0.00019178,2]
[378676487,1754956233352,-460.0,0.00019178,2]
[378676489,1754956233361,-460.0,0.00019178,2]
[378676491,1754956233370,-484.98536871,0.00019178,2]
[378676492,1754956233379,-460.0,0.00019178,2]
[378676494,1754956233390,-460.0,0.00019178,2]
[378676496,1754956233399,-165.67221743,0.00019178,2]
[378676498,1754956233409,-460.0,0.00019178,2]
[378676500,1754956233418,-460.0,0.00019178,2]
[378676502,1754956233427,-460.0,0.00019178,2]
[378676504,1754956233437,-460.0,0.00019178,2]
[378676506,1754956233446,-460.0,0.00019178,2]
[378676509,1754956233455,-460.0,0.00019178,2]
[378676510,1754956233465,-460.0,0.00019178,2]
[378676512,1754956233474,-460.0,0.00019178,2]
[378676514,1754956233483,-460.0,0.00019178,2]
[378676516,1754956233492,-460.0,0.00019178,2]
[378676518,1754956233501,-460.0,0.00019178,2]
[378676520,1754956233511,-460.0,0.00019178,2]
[378676522,1754956233520,-460.0,0.00019178,2]
[378676524,1754956233530,-460.0,0.00019178,2]
[378676526,1754956233539,-460.0,0.00019178,2]
[378676528,1754956233550,-500.64,0.00019178,2]
[378676530,1754956233559,-460.0,0.00019178,2]
[378676532,1754956233569,-467.92981142,0.00019178,2]
[378676534,1754956233578,-460.0,0.00019178,2]
[378676536,1754956233587,-460.0,0.00019178,2]
[378676538,1754956233597,-460.0,0.00019178,2]
[378676540,1754956233606,-460.0,0.00019178,2]
[378676542,1754956233615,-1227.79,0.00019178,2]
[378676544,1754956233625,-460.0,0.00019178,2]
[378676546,1754956233634,-460.0,0.00019178,2]
[378676548,1754956233643,-460.0,0.00019178,2]
[378676550,1754956233652,-715.25,0.00019178,2]
[378676552,1754956233661,-460.0,0.00019178,2]
[378676554,1754956233671,-460.0,0.00019178,2]
[378676556,1754956233685,-460.0,0.00019178,2]
[378676558,1754956233694,-692.42,0.00019178,2]
[378676560,1754956233703,-460.0,0.00019178,2]
[378676562,1754956233712,-460.0,0.00019178,2]
[378676564,1754956233722,-460.0,0.00019178,2]
[378676566,1754956233733,-606.22542611,0.00019178,2]
[378676568,1754956233742,-460.0,0.00019178,2]
[378676570,1754956233752,-460.0,0.00019178,2]
[378676572,1754956233765,-460.0,0.00019178,2]
[378676574,1754956233775,-460.0,0.00019178,2]
[378676576,1754956233785,-460.0,0.00019178,2]
[378676578,1754956233795,-654.07,0.00019178,2]
[378676580,1754956233804,-460.0,0.00019178,2]
[378676582,1754956233814,-2873.86,0.00019178,2]
[378676584,1754956233823,-460.0,0.00019178,2]
[378676586,1754956233833,-263.55635531,0.00019178,2]
[378676589,1754956233860,-196.44364469,0.00019178,2]
[378676591,1754956233870,-460.0,0.00019178,2]
[378676593,1754956233879,-481.84188262,0.00019178,2]
[378676595,1754956233889,-460.0,0.00019178,2]
[378676598,1754956233899,-460.0,0.00019178,2]
[378676599,1754956233909,-460.0,0.00019178,2]
[378676602,1754956233919,-460.0,0.00019178,2]
[378676603,1754956233929,-460.0,0.00019178,2]
[378676606,1754956233939,-460.0,0.00019178,2]
[378676607,1754956233948,-460.0,0.00019178,2]
[378676610,1754956233958,-460.0,0.00019178,2]
[378676612,1754956233968,-460.0,0.00019178,2]
[378676613,1754956233978,-460.0,0.00019178,2]
[378676616,1754956233988,-460.0,0.00019178,2]
[378676617,1754956233997,-460.0,0.00019178,2]
[378676619,1754956234007,-460.62381113,0.00019178,2]
[378676621,1754956234017,-460.0,0.00019178,2]
[378676624,1754956234032,-460.0,0.00019178,2]
[378676626,1754956234042,-460.0,0.00019178,2]
[378676628,1754956234052,-460.0,0.00019178,2]
[378676630,1754956234061,-401.60406388,0.00019178,2]
[378676632,1754956234070,-460.0,0.00019178,2]
[378676634,1754956234080,-468.08551036,0.00019178,2]
[378676636,1754956234089,-460.0,0.00019178,2]
[378676638,1754956234099,-460.0,0.00019178,2]
[378676640,1754956234108,-460.0,0.00019178,2]
[378676642,1754956234118,-369.76879548,0.00019178,2]
[378676643,1754956234127,-460.0,0.00019178,2]
[378676644,1754956234136,-460.0,0.00019178,2]
[378676645,1754956234145,-460.0,0.00019178,2]
[378676646,1754956234157,-460.0,0.00019178,2]
[378676647,1754956234166,-788.47,0.00019178,2]
[378676648,1754956234175,-460.0,0.00019178,2]
[378676649,1754956234184,-239.8950101,0.00019178,2]
[378676650,1754956234194,-460.0,0.00019178,2]
[378676651,1754956234203,-460.0,0.00019178,2]
[378676652,1754956234212,-460.0,0.00019178,2]
[378676653,1754956234222,-460.0,0.00019178,2]
[378676654,1754956234231,-488.45,0.00019178,2]
[378676655,1754956234241,-460.0,0.00019178,2]
[378676656,1754956234250,-460.0,0.00019178,2]
[378676657,1754956234259,-556.84,0.00019178,2]
[378676658,1754956234268,-460.0,0.00019178,2]
[378676659,1754956234279,-460.0,0.00019178,2]
[378676660,1754956234288,-462.38926379,0.00019178,2]
[378676661,1754956234298,-460.0,0.00019178,2]
[378676662,1754956234307,-460.0,0.00019178,2]
[378676664,1754956234317,-680.85,0.00019178,2]
[378676665,1754956234326,-460.0,0.00019178,2]
[378676666,1754956234335,-460.0,0.00019178,2]
[378676668,1754956234344,-460.0,0.00019178,2]
[378676670,1754956234354,-3725.39,0.00019178,2]
[378676672,1754956234364,-463.91655385,0.00019178,2]
[378676674,1754956234373,-460.0,0.00019178,2]
[378676676,1754956234383,-562.89448758,0.00019178,2]
[378676678,1754956234392,-460.0,0.00019178,2]
[378676680,1754956234401,-460.0,0.00019178,2]
[378676682,1754956234411,-1000.0,0.00019178,2]
[378676684,1754956234420,-460.0,0.00019178,2]
[378676686,1754956234430,-499.15,0.00019178,2]
[378676688,1754956234439,-460.0,0.00019178,2]
[378676690,1754956234448,-1746.9,0.00019178,2]
[378676692,1754956234458,-460.0,0.00019178,2]
[378676694,1754956234467,-460.0,0.00019178,2]
[378676696,1754956234477,-460.0,0.00019178,2]
[378676698,1754956234486,-460.0,0.00019178,2]
[378676700,1754956234495,-460.0,0.00019178,2]
[378676702,1754956234505,-460.0,0.00019178,2]
[378676704,1754956234514,-460.0,0.00019178,2]
[378676706,1754956234523,-460.0,0.00019178,2]
[378676708,1754956234536,-460.0,0.00019178,2]
[378676710,1754956234545,-460.0,0.00019178,2]
[378676712,1754956234555,-460.0,0.00019178,2]
[378676714,1754956234564,-162.9432916,0.00019178,2]
[378676716,1754956234574,-460.0,0.00019178,2]
[378676718,1754956234583,-460.0,0.00019178,2]
[378676720,1754956234592,-460.0,0.00019178,2]
[378676722,1754956234602,-368.27730857,0.00019178,2]
[378676724,1754956234612,-460.0,0.00019178,2]
[378676726,1754956234621,-155.99601206,0.00019178,2]
[378676728,1754956234630,-500.0,0.00019178,2]
[378676730,1754956234640,-281.13136386,0.00019178,2]
[378676732,1754956234649,-460.0,0.00019178,2]
[378676734,1754956234660,-500.0,0.00019178,2]
[378676736,1754956234669,-500.0,0.00019178,2]
[378676738,1754956234684,-341.38,0.00019178,2]
[378676740,1754956234693,-108.22939168,0.00019178,2]
[378677142,1754956238508,-232.90821377,0.000189,2]
[378677144,1754956238519,-374.35060832,0.00019178,2]
[378677146,1754956238530,-460.0,0.00019178,2]
[378677149,1754956238540,-460.0,0.00019178,2]
[378677151,1754956238551,-72.74117791,0.00019178,2]
[378677153,1754956238564,-387.25882209,0.00019178,2]
[378677155,1754956238576,-343.72117711,0.00019178,2]
[378677158,1754956238588,-116.27882289,0.00019178,2]
[378677160,1754956238599,-460.0,0.00019178,2]
[378677162,1754956238611,-460.0,0.00019178,2]
[378677165,1754956238625,-460.0,0.00019178,2]
[378677167,1754956238635,-460.0,0.00019178,2]
[378677170,1754956238646,-460.0,0.00019178,2]
[378677172,1754956238657,-553.81,0.00019178,2]
[378677174,1754956238667,-2987.39,0.00019178,2]
[378677176,1754956238679,-460.0,0.00019178,2]
[378677178,1754956238690,-437.73518619,0.00019178,2]
[378677181,1754956238700,-460.0,0.00019178,2]
[378677183,1754956238711,-460.0,0.00019178,2]
[378677185,1754956238723,-460.0,0.00019178,2]
[378677187,1754956238733,-460.0,0.00019178,2]
[378677189,1754956238744,-460.0,0.00019178,2]
[378677191,1754956238756,-460.0,0.00019178,2]
[378677193,1754956238766,-460.0,0.00019178,2]
[378677195,1754956238777,-571.94,0.00019178,2]
[378677197,1754956238788,-460.0,0.00019178,2]
[378677200,1754956238799,-462.8670049,0.00019178,2]
[378677202,1754956238809,-460.0,0.00019178,2]
[378677204,1754956238819,-460.0,0.00019178,2]
[378677206,1754956238830,-460.0,0.00019178,2]
[378677208,1754956238840,-487.4,0.00019178,2]
[378677210,1754956238851,-1041.03,0.00019178,2]
[378677212,1754956238862,-460.0,0.00019178,2]
[378677215,1754956238873,-460.0,0.00019178,2]
[378677217,1754956238883,-460.0,0.00019178,2]
[378677219,1754956238894,-500.0,0.00019178,2]